bitfinex-derivatives/quotes_BTCF0:USTF0_20260127
["timestamp","ask_amount","ask_price","bid_price","bid_amount"]
[1769553383239,0.00997411,89307.0,89293.0,0.01380038]
[1769553383445,0.43472,89306.0,89293.0,0.00258838]
[1769553384340,0.00937866,89305.0,89290.0,0.11419673]
[1769553384536,0.00937866,89305.0,89289.0,0.011213]
[1769553384741,0.00937866,89303.0,89282.0,0.22429402]
[1769553385041,0.00937866,89303.0,89282.0,0.2268824]
[1769553385242,0.00937866,89303.0,89283.0,0.22429402]
[1769553385548,0.00937866,89303.0,89285.0,0.00926006]
[1769553385843,0.00937866,89303.0,89286.0,0.00258838]
[1769553386446,0.00937866,89303.0,89292.0,0.011213]
[1769553387249,0.00937866,89303.0,89292.0,0.01380138]
[1769553392255,0.011209,89325.0,89294.0,0.09829857]
[1769553392549,0.01121,89314.0,89298.0,0.00926006]
[1769553392757,0.39616,89313.0,89299.0,0.01184844]
[1769553393450,0.12540473,89330.0,89299.0,0.01184844]
[1769553393451,0.43644,89312.0,89307.0,0.011211]
[1769553393649,0.43648,89311.0,89307.0,0.01379938]
[1769553393956,0.10088,89310.0,89307.0,0.01379938]
[1769553394447,0.10088,89310.0,89303.0,0.011211]
[1769553394748,0.10088,89310.0,89304.0,0.00258838]
[1769553396453,0.00937866,89318.0,89307.0,0.011211]
[1769553396656,0.44821,89317.0,89308.0,0.00258838]
[1769553396953,0.45758866,89317.0,89308.0,0.00258838]
[1769553397162,0.00937866,89316.0,89308.0,0.00258838]
[1769553398854,0.02058866,89315.0,89308.0,0.00258838]
[1769553399354,0.00937866,89314.0,89308.0,0.00258838]
[1769553400247,0.00937866,89314.0,89302.0,0.011211]
[1769553400447,0.00937866,89314.0,89303.0,0.00258838]
[1769553402752,0.00937866,89312.0,89303.0,0.00258838]
[1769553402952,0.01121,89311.0,89303.0,0.00258838]
[1769553403859,0.011211,89308.0,89303.0,0.00258838]
[1769553404861,0.011211,89306.0,89303.0,0.00258838]
[1769553405163,0.011211,89305.0,89300.0,0.08903851]
[1769553405370,0.011211,89305.0,89301.0,0.00258838]
[1769553406963,0.011211,89307.0,89301.0,0.00258838]
[1769553407965,0.33836,89310.0,89302.0,0.00926006]
[1769553408164,0.33836,89310.0,89303.0,0.00258838]
[1769553408970,0.01121,89314.0,89303.0,0.00258838]
[1769553409155,0.43964,89313.0,89303.0,0.00258838]
[1769553409760,0.33888,89312.0,89303.0,0.00258838]
[1769553410061,0.43976,89312.0,89303.0,0.00258838]
[1769553410260,0.43976,89312.0,89303.0,0.09162689]
[1769553410865,0.45097,89312.0,89303.0,0.09162689]
[1769553411164,0.00937866,89314.0,89303.0,0.09162689]
[1769553411364,0.43996,89313.0,89303.0,0.09162689]
[1769553411761,0.00937866,89314.0,89303.0,0.09162689]
[1769553412070,0.45121,89313.0,89303.0,0.09162689]
[1769553412868,0.46058866,89313.0,89303.0,0.09162689]
[1769553413269,0.02058866,89313.0,89303.0,0.09162689]
[1769553413471,0.33928,89312.0,89304.0,0.08903851]
[1769553413767,0.33928,89312.0,89305.0,0.00258838]
[1769553414468,0.10088,89314.0,89305.0,0.09162689]
[1769553414670,0.00930076,89317.0,89307.0,0.011211]
[1769553414868,0.00930076,89317.0,89308.0,0.00258838]
[1769553415964,0.011208,89328.0,89309.0,0.00931445]
[1769553416161,0.011208,89326.0,89314.0,0.00931445]
[1769553416359,0.29528,89325.0,89315.0,0.01190283]
[1769553416557,0.011209,89322.0,89315.0,0.01190283]
[1769553416867,0.011208,89334.0,89315.0,0.01190283]
[1769553417072,0.44068,89333.0,89315.0,0.01190283]
[1769553417273,0.44068,89333.0,89316.0,0.00931445]
[1769553417478,0.011208,89331.0,89318.0,0.00931445]
[1769553417675,0.011208,89331.0,89319.0,0.00258838]
[1769553418172,0.00334738,89330.0,89319.0,0.00258838]
[1769553418773,0.011208,89329.0,89319.0,0.00258838]
[1769553419576,0.011208,89327.0,89319.0,0.00258838]
[1769553419873,0.01455538,89330.0,89319.0,0.00258838]
[1769553420067,0.34032,89329.0,89319.0,0.00258838]
[1769553420268,0.35487538,89330.0,89319.0,0.00258838]
[1769553420960,0.011206,89344.0,89319.0,0.01379738]
[1769553421164,0.011208,89333.0,89319.0,0.02363551]
[1769553421565,0.34048,89333.0,89321.0,0.02104713]
[1769553421768,0.34048,89333.0,89322.0,0.01242651]
[1769553424575,0.34115571,89333.0,89322.0,0.00258838]
[1769553425074,0.011208,89332.0,89322.0,0.00258838]
[1769553425980,0.01185992,89332.0,89322.0,0.00258838]
[1769553426779,0.011208,89330.0,89322.0,0.00258838]
[1769553426976,0.00065192,89339.0,89323.0,0.00978269]
[1769553427183,0.29524,89341.0,89330.0,0.00978269]
[1769553427372,0.00065192,89342.0,89331.0,0.00258838]
[1769553427573,0.34144,89341.0,89331.0,0.00258838]
[1769553427773,0.00065192,89342.0,89331.0,0.00258838]
[1769553427977,0.011206,89343.0,89332.0,0.00973058]
[1769553428174,0.34144,89345.0,89333.0,0.01231896]
[1769553428577,0.00080824,89345.0,89333.0,0.02352696]
[1769553428774,0.34152,89348.0,89337.0,0.02093758]
[1769553428978,0.34152,89348.0,89338.0,0.00258838]
[1769553429181,0.3416,89351.0,89338.0,0.12651569]
[1769553429691,0.011205,89351.0,89338.0,0.12651569]
[1769553429881,0.011205,89351.0,89338.0,0.01231896]
[1769553430379,0.01196379,89351.0,89338.0,0.01231896]
[1769553430585,0.01196379,89351.0,89340.0,0.11419673]
[1769553430775,0.01196379,89351.0,89341.0,0.00258838]
[1769553430971,0.011204,89359.0,89345.0,0.00999999]
[1769553431282,0.011204,89359.0,89347.0,0.00999999]
[1769553431474,0.011204,89359.0,89348.0,0.00258838]
[1769553431976,0.011205,89357.0,89348.0,0.00258838]
[1769553432178,0.0908429,89395.0,89348.0,0.00258838]
[1769553432179,0.011205,89358.0,89348.0,0.01257944]
[1769553432385,0.011205,89358.0,89349.0,0.00999106]
[1769553432574,0.011205,89358.0,89350.0,0.00258838]
[1769553432880,0.011204,89364.0,89351.0,0.00999106]
[1769553433084,0.011204,89364.0,89352.0,0.01257944]
[1769553433485,0.011204,89362.0,89352.0,0.00258838]
[1769553433785,0.011204,89360.0,89352.0,0.00258838]
[1769553433981,0.2952,89371.0,89352.0,0.00258838]
[1769553434178,0.011203,89370.0,89352.0,0.01379338]
[1769553434480,0.011203,89370.0,89353.0,0.01000135]
[1769553434681,0.011203,89371.0,89355.0,0.01000135]
[1769553434884,0.011203,89371.0,89357.0,0.01000135]
[1769553435185,0.011203,89369.0,89358.0,0.00258838]
[1769553435685,0.011203,89372.0,89359.0,0.01000135]
[1769553435885,0.01131779,89372.0,89360.0,0.00258838]
[1769553436490,0.00011479,89372.0,89360.0,0.00258838]
[1769553437181,0.011203,89371.0,89360.0,0.01255011]
[1769553437389,0.011203,89371.0,89361.0,0.00996173]
[1769553437588,0.011203,89371.0,89362.0,0.00258838]
[1769553438189,0.011201,89386.0,89362.0,0.00258838]
[1769553438190,0.22786937,89400.0,89368.0,0.00997669]
[1769553438374,0.00999999,89432.0,89414.0,0.011197]
[1769553438580,0.22786937,89431.0,89415.0,0.10342838]
[1769553438889,0.00999999,89432.0,89416.0,0.011197]
[1769553439083,0.22786937,89431.0,89417.0,0.00258838]
[1769553439782,0.01004082,89428.0,89415.0,0.09923092]
[1769553439999,0.01004082,89428.0,89407.0,0.29516]
[1769553440000,0.01004082,89425.0,89401.0,0.011199]
[1769553440190,0.01004082,89425.0,89403.0,0.011199]
[1769553440384,0.01004082,89425.0,89405.0,0.011198]
[1769553440586,0.22786937,89424.0,89406.0,0.00258838]
[1769553440780,0.01004082,89423.0,89402.0,0.10084]
[1769553440987,0.01004082,89414.0,89392.0,0.39148]
[1769553441291,0.01004082,89414.0,89394.0,0.0112]
[1769553441491,0.01004082,89414.0,89395.0,0.10342838]
[1769553441690,0.01004082,89412.0,89395.0,0.10342838]
[1769553442093,0.01092964,89410.0,89395.0,0.10084]
[1769553442288,0.22786937,89409.0,89395.0,0.10084]
[1769553442496,0.01092964,89407.0,89395.0,0.08991036]
[1769553442693,0.01092964,89407.0,89395.0,0.06835441]
[1769553442694,0.011198,89406.0,89395.0,0.06835441]
[1769553442886,0.00930076,89403.0,89384.0,0.10084]
[1769553443087,0.22786937,89406.0,89384.0,0.10084]
[1769553443088,0.011199,89402.0,89384.0,0.10084]
[1769553443484,9.734e-05,89400.0,89384.0,0.10084]
[1769553443689,9.734e-05,89400.0,89385.0,0.00258838]
[1769553445198,0.10084,89403.0,89389.0,0.0112]
[1769553445388,0.22786937,89402.0,89391.0,0.0112]
[1769553445588,0.22786937,89402.0,89392.0,0.00258838]
[1769553445989,0.1008,89401.0,89393.0,0.0112]
[1769553446190,0.1008,89401.0,89385.0,0.00996755]
[1769553446392,0.10338838,89401.0,89385.0,0.00996755]
[1769553447098,0.32866937,89402.0,89392.0,0.0112]
[1769553447294,0.1008,89403.0,89401.0,0.13379434]
[1769553447507,0.011193,89448.0,89402.0,0.1681973]
[1769553447690,0.011197,89419.0,89406.0,0.08883797]
[1769553447889,0.3967032,89418.0,89406.0,0.09142597]
[1769553448092,0.011193,89453.0,89410.0,0.011198]
[1769553448297,0.0008632,89431.0,89413.0,0.011198]
[1769553448499,0.0008632,89431.0,89415.0,0.011197]
[1769553448697,0.0008632,89431.0,89416.0,0.002588]
[1769553449487,0.0008632,89431.0,89417.0,0.011197]
[1769553449691,0.0008632,89431.0,89418.0,0.002588]
[1769553452905,0.0120582,89431.0,89418.0,0.002588]
[1769553454605,0.1016632,89431.0,89418.0,0.002588]
[1769553455016,0.011195,89430.0,89418.0,0.002588]
[1769553455209,0.0008632,89429.0,89418.0,0.002588]
[1769553456410,0.0008632,89429.0,89420.0,0.011197]
[1769553456610,0.0008632,89429.0,89421.0,0.002588]
[1769553456797,0.00033295,89430.0,89422.0,0.011196]
[1769553457001,0.00033295,89430.0,89423.0,0.002588]
[1769553457301,0.00782713,89433.0,89423.0,0.002588]
[1769553457500,0.111993,89449.0,89428.0,0.011196]
[1769553457707,0.4078162,89449.0,89430.0,0.011195]
[1769553458008,0.4078162,89449.0,89431.0,0.002588]
[1769553458202,0.0008632,89448.0,89431.0,0.002588]
[1769553458403,0.011193,89446.0,89431.0,0.002588]
[1769553458606,0.0008632,89445.0,89431.0,0.002588]
[1769553459499,0.011194,89444.0,89431.0,0.002588]
[1769553459702,0.0008632,89443.0,89431.0,0.002588]
[1769553459900,0.10076,89447.0,89431.0,0.002588]
[1769553460110,0.0008632,89446.0,89431.0,0.002588]
[1769553460908,0.011194,89442.0,89431.0,0.002588]
[1769553461215,0.0008632,89441.0,89431.0,0.002588]
[1769553462410,0.011194,89440.0,89431.0,0.002588]
[1769553462615,0.0120572,89440.0,89431.0,0.002588]
[1769553463117,0.0008632,89440.0,89431.0,0.002588]
[1769553464509,0.011193,89446.0,89431.0,0.002588]
[1769553464711,0.0008632,89445.0,89432.0,0.01022517]
[1769553465020,0.011194,89444.0,89433.0,0.002588]
[1769553465216,0.0008632,89443.0,89433.0,0.002588]
[1769553466415,0.011194,89442.0,89433.0,0.002588]
[1769553466718,0.0120572,89442.0,89433.0,0.002588]
[1769553466913,0.011191,89465.0,89434.0,0.02142138]
[1769553467123,0.0008632,89449.0,89436.0,0.01022638]
[1769553467315,0.0008632,89449.0,89437.0,0.002588]
[1769553467523,0.011193,89447.0,89437.0,0.002588]
[1769553467717,0.0008632,89447.0,89437.0,0.002588]
[1769553468218,4e-05,89450.0,89437.0,0.10116806]
[1769553468524,0.0120562,89449.0,89438.0,0.01008721]
[1769553468721,0.0008632,89449.0,89439.0,0.002588]
[1769553470520,0.0008632,89449.0,89433.0,0.01008721]
[1769553470724,0.011193,89446.0,89433.0,0.01008721]
[1769553470915,0.00258838,89445.0,89433.0,0.01008721]
[1769553471223,0.00258838,89445.0,89432.0,0.011196]
[1769553473120,0.00258838,89445.0,89431.0,0.011196]
[1769553473518,0.00258838,89445.0,89430.0,0.08849285]
[1769553473712,5.796e-05,89444.0,89430.0,0.011197]
[1769553473915,0.00264634,89443.0,89432.0,0.011196]
[1769553476123,0.00258838,89443.0,89434.0,0.02118905]
[1769553476321,0.00258838,89443.0,89434.0,0.08849285]
[1769553476715,0.00258838,89443.0,89429.0,0.00999305]
[1769553476716,0.00258838,89443.0,89432.0,0.08849285]
[1769553477224,0.00258838,89443.0,89437.0,0.08849285]
[1769553477621,0.00258838,89443.0,89434.0,0.08849285]
[1769553477821,4e-05,89450.0,89436.0,0.00988817]
[1769553478022,0.00258838,89449.0,89436.0,0.00988817]
[1769553478919,0.00292385,89449.0,89436.0,0.00988817]
[1769553479324,0.00033547,89448.0,89433.0,0.10957702]
[1769553479526,0.00258838,89447.0,89433.0,0.10957702]
[1769553480118,0.00258838,89447.0,89433.0,0.09968885]
[1769553480324,0.00258838,89447.0,89436.0,0.011196]
[1769553480519,4e-05,89450.0,89436.0,0.011196]
[1769553480520,4e-05,89450.0,89437.0,0.01005048]
[1769553480719,0.10076,89449.0,89438.0,0.02124548]
[1769553480919,0.10334838,89449.0,89438.0,0.01005048]
[1769553481121,0.00258838,89449.0,89441.0,0.011195]
[1769553481316,0.06090355,89484.0,89449.0,0.01005048]
[1769553481517,0.00258838,89483.0,89439.0,0.011195]
[1769553481723,0.00258838,89483.0,89463.0,0.01005048]
[1769553482120,0.01119,89481.0,89454.0,0.011194]
[1769553482335,0.00258838,89480.0,89451.0,0.011194]
[1769553482838,0.40683,89479.0,89451.0,0.02129802]
[1769553483023,0.00258838,89478.0,89452.0,0.01010402]
[1769553484227,0.34232,89477.0,89452.0,0.01010402]
[1769553484530,0.10334838,89476.0,89452.0,0.01010402]
[1769553485228,0.44312,89475.0,89452.0,0.01010402]
[1769553485430,0.00258838,89474.0,89452.0,0.01010402]
[1769553486032,0.00258838,89474.0,89455.0,0.01013582]
[1769553486224,0.10076,89473.0,89455.0,0.01013582]
[1769553486425,0.00258838,89472.0,89455.0,0.01013582]
[1769553490836,0.10072,89471.0,89456.0,0.011193]
[1769553491036,0.00258838,89470.0,89457.0,0.01040529]
[1769553491633,0.00258838,89470.0,89452.0,0.01040529]
[1769553491840,0.011193,89459.0,89443.0,0.08849285]
[1769553492027,0.011193,89456.0,89441.0,0.08849285]
[1769553492226,0.011194,89448.0,89434.0,0.13379434]
[1769553492423,0.00258838,89447.0,89435.0,0.17857605]
[1769553492627,0.00258838,89447.0,89432.0,0.13379434]
[1769553492628,0.00258838,89447.0,89432.0,0.14426052]
[1769553492829,0.00258838,89447.0,89432.0,0.01046618]
[1769553493028,0.011194,89446.0,89427.0,0.10072]
[1769553493233,0.00258838,89445.0,89430.0,0.011196]
[1769553493544,0.00258838,89445.0,89428.0,0.01046618]
[1769553493931,0.01378338,89445.0,89428.0,0.01046618]
[1769553494335,0.011195,89444.0,89427.0,0.10072]
[1769553494534,0.011195,89442.0,89427.0,0.10072]
[1769553494726,0.00258838,89441.0,89427.0,0.10072]
[1769553495330,0.011195,89440.0,89427.0,0.10072]
[1769553495532,0.00258838,89439.0,89427.0,0.10072]
[1769553495937,0.00258838,89439.0,89427.0,0.11129128]
[1769553496933,0.00087453,89452.0,89428.0,0.01315966]
[1769553497133,0.00086282,89445.0,89428.0,0.01315966]
[1769553497529,0.10076,89444.0,89428.0,0.01315966]
[1769553498033,0.10162282,89444.0,89428.0,0.01315966]
[1769553498235,0.10162282,89444.0,89433.0,0.00981871]
[1769553498544,0.10162282,89444.0,89435.0,0.00981871]
[1769553498740,0.10162282,89444.0,89436.0,0.01240709]
[1769553499039,0.00941206,89455.0,89439.0,0.011195]
[1769553499233,0.00086282,89451.0,89440.0,0.01240709]
[1769553501234,0.00086282,89451.0,89441.0,0.00981871]
[1769553501435,0.00086282,89451.0,89441.0,0.01240709]
[1769553501636,0.00086282,89451.0,89441.0,0.00258838]
[1769553501931,0.00086282,89451.0,89441.0,0.01240709]
[1769553502132,0.011194,89454.0,89441.0,0.01240709]
[1769553502346,0.00086282,89453.0,89441.0,0.01240709]
[1769553504252,0.00086282,89453.0,89442.0,0.00928322]
[1769553504948,0.00086282,89453.0,89442.0,0.0118716]
[1769553505254,0.011194,89452.0,89442.0,0.0118716]
[1769553505545,0.00086282,89451.0,89442.0,0.0118716]
[1769553506849,0.011194,89450.0,89442.0,0.0118716]
[1769553507049,0.00086282,89449.0,89442.0,0.0118716]
[1769553508864,0.00086282,89449.0,89442.0,0.00928322]
[1769553509960,0.011194,89448.0,89442.0,0.00928322]
[1769553510259,0.00086282,89447.0,89442.0,0.00928322]
[1769553511060,0.011195,89445.0,89442.0,2.2e-07]
[1769553511258,0.01205782,89445.0,89442.0,2.2e-07]
[1769553511957,0.01205782,89445.0,89430.0,0.011196]
[1769553512266,0.01205782,89445.0,89431.0,0.00258838]
[1769553512963,0.10987327,89456.0,89432.0,0.00927664]
[1769553513266,0.11396951,89450.0,89434.0,0.00927664]
[1769553513460,0.011195,89445.0,89436.0,0.00927664]
[1769553513659,0.011195,89445.0,89438.0,0.00927664]
[1769553513859,0.00086282,89444.0,89440.0,0.00927664]
[1769553514064,0.011195,89445.0,89440.0,0.00927664]
[1769553515062,0.011195,89445.0,89440.0,0.01186502]
[1769553515670,0.00086282,89444.0,89427.0,0.10072]
[1769553515871,0.011195,89441.0,89428.0,0.00258838]
[1769553516364,0.11396951,89450.0,89432.0,0.011196]
[1769553516560,0.11396951,89450.0,89433.0,0.00258838]
[1769553516758,0.011195,89445.0,89433.0,0.00258838]
[1769553517371,0.011194,89448.0,89433.0,0.00258838]
[1769553517762,0.011194,89448.0,89434.0,0.00927664]
[1769553517970,0.011194,89448.0,89436.0,0.00927664]
[1769553518265,0.011194,89445.0,89437.0,0.00258838]
[1769553519169,0.11396951,89450.0,89437.0,0.00258838]
[1769553519969,0.00911327,89452.0,89438.0,0.00927664]
[1769553520272,0.11396951,89450.0,89438.0,0.00927664]
[1769553520663,0.12308278,89450.0,89438.0,0.00927664]
[1769553521463,0.011195,89447.0,89438.0,0.00927664]
[1769553522064,0.011195,89447.0,89434.0,0.00927664]
[1769553522265,0.011195,89446.0,89434.0,0.01186502]
[1769553522762,0.011195,89446.0,89435.0,0.00927664]
[1769553522963,0.011195,89444.0,89436.0,0.00258838]
[1769553524073,0.00258838,89443.0,89435.0,2e-08]
[1769553524475,0.00258838,89443.0,89405.0,0.16682957]
[1769553524476,0.00990616,89428.0,89404.0,0.13379434]
[1769553524676,0.011196,89429.0,89406.0,0.00086282]
[1769553524677,0.011197,89416.0,89406.0,0.00086282]
[1769553524874,0.00258838,89416.0,89406.0,0.00066821]
[1769553525173,0.00258838,89416.0,89405.0,0.10076]
[1769553525365,0.011198,89413.0,89405.0,0.10076]
[1769553525565,0.00258838,89413.0,89405.0,0.10076]
[1769553525970,0.00258838,89413.0,89405.0,0.10142821]
[1769553528571,0.011198,89407.0,89393.0,0.10859063]
[1769553528769,0.011198,89407.0,89394.0,0.00066821]
[1769553528770,0.00258838,89406.0,89394.0,0.00066821]
[1769553529162,0.00258838,89406.0,89384.0,0.16682957]
[1769553529163,0.01013407,89403.0,89379.0,7.889e-05]
[1769553529373,0.0112,89395.0,89380.0,0.00066821]
[1769553529570,0.02579116,89400.0,89381.0,0.14840011]
[1769553529766,0.011201,89390.0,89382.0,0.14840011]
[1769553529966,0.02579116,89400.0,89383.0,0.14840011]
[1769553530169,0.0112,89396.0,89385.0,0.00927664]
[1769553530371,0.0112,89394.0,89386.0,0.15098849]
[1769553530568,0.0112,89394.0,89387.0,0.14840011]
[1769553530773,0.0112,89394.0,89388.0,0.14840011]
[1769553531078,0.0112,89394.0,89387.0,0.00258838]
[1769553531277,0.0112,89391.0,89388.0,0.14278501]
[1769553531571,0.0112,89391.0,89373.0,0.16682957]
[1769553531572,0.011202,89381.0,89377.0,5.3e-07]
[1769553531877,0.011202,89381.0,89369.0,0.26758957]
[1769553532062,0.00258838,89380.0,89369.0,0.26758957]
[1769553532266,0.00258838,89380.0,89369.0,0.10076]
[1769553532468,0.011202,89379.0,89369.0,0.10076]
[1769553532762,7.889e-05,89378.0,89369.0,0.10076]
[1769553533077,7.889e-05,89378.0,89332.0,0.00012963]
[1769553533078,0.011203,89372.0,89364.0,0.10076]
[1769553533276,0.00258838,89371.0,89364.0,0.10076]
[1769553533475,0.0008627,89370.0,89364.0,0.10076]
[1769553534277,0.0008627,89370.0,89364.0,0.10334838]
[1769553534976,0.0008627,89370.0,89356.0,0.00118348]
[1769553535171,0.0008627,89370.0,89357.0,0.00118348]
[1769553535370,0.011204,89362.0,89353.0,1.4e-07]
[1769553535573,0.011204,89360.0,89350.0,0.00377186]
[1769553535867,0.011204,89360.0,89343.0,0.10076]
[1769553535868,0.011205,89356.0,89343.0,0.10076]
[1769553536078,0.00258838,89356.0,89343.0,0.10076]
[1769553537571,7.889e-05,89359.0,89344.0,0.011206]
[1769553537877,0.00266727,89359.0,89345.0,0.00041473]
[1769553538975,0.00266727,89359.0,89346.0,0.00041473]
[1769553539377,0.00266727,89359.0,89317.0,0.22429402]
[1769553539378,0.00986175,89358.0,89317.0,0.22429402]
[1769553539570,0.00258838,89357.0,89343.0,0.011206]
[1769553539876,0.00258838,89357.0,89340.0,0.011207]
[1769553540178,0.00258838,89357.0,89336.0,0.1008]
[1769553540377,0.00258838,89357.0,89340.0,0.11396951]
[1769553540583,0.00258838,89357.0,89348.0,0.011206]
[1769553540887,0.00258838,89357.0,89340.0,0.11396951]
[1769553541573,0.00258838,89357.0,89347.0,0.011206]
[1769553541977,7.889e-05,89359.0,89347.0,0.011206]
[1769553542681,0.00266727,89359.0,89347.0,0.011206]
[1769553542984,7.889e-05,89359.0,89350.0,0.011205]
[1769553543174,0.66713093,89495.0,89358.0,0.00932578]
[1769553543175,0.011202,89376.0,89358.0,0.00932578]
[1769553543486,0.00258838,89376.0,89360.0,0.00932578]
[1769553543974,0.011202,89375.0,89361.0,0.00932578]
[1769553544174,0.011203,89373.0,89361.0,0.00932578]
[1769553544586,0.00258838,89373.0,89361.0,0.00932578]
[1769553544881,0.011203,89372.0,89361.0,0.00932578]
[1769553545075,0.00258838,89373.0,89361.0,0.00932578]
[1769553545285,0.011203,89370.0,89361.0,0.00932578]
[1769553545582,0.011203,89368.0,89361.0,0.00932578]
[1769553545778,0.011203,89369.0,89361.0,0.00932578]
[1769553546777,0.011203,89372.0,89361.0,0.00932578]
[1769553546980,0.011203,89370.0,89361.0,0.00932578]
[1769553547288,0.00012963,89374.0,89365.0,0.011204]
[1769553547474,0.00978956,89386.0,89368.0,0.00932578]
[1769553547674,0.00258838,89386.0,89368.0,0.00932578]
[1769553548070,0.011201,89383.0,89370.0,0.00932578]
[1769553548278,0.011201,89385.0,89371.0,0.02052878]
[1769553548480,0.00258838,89383.0,89371.0,0.00932578]
[1769553548686,0.00258838,89383.0,89372.0,0.00932578]
[1769553548884,0.011201,89386.0,89372.0,0.00932578]
[1769553548885,0.011201,89386.0,89373.0,0.01379138]
[1769553549183,0.0120637,89386.0,89374.0,0.00932578]
[1769553549391,0.0120637,89386.0,89375.0,0.00258838]
[1769553549590,0.011201,89386.0,89376.0,0.00932578]
[1769553549775,0.011201,89386.0,89378.0,0.00932578]
[1769553549979,0.011201,89386.0,89379.0,0.00258838]
[1769553550174,0.1008,89393.0,89379.0,0.00258838]
[1769553550382,0.1016627,89393.0,89380.0,0.00932578]
[1769553550587,0.011201,89388.0,89381.0,0.00258838]
[1769553550782,0.0120637,89388.0,89381.0,0.00258838]
[1769553551186,0.011201,89387.0,89372.0,0.011203]
[1769553551386,0.01378938,89387.0,89372.0,0.011203]
[1769553552680,0.01378938,89387.0,89371.0,0.1008]
[1769553552681,0.011201,89384.0,89371.0,0.1008]
[1769553552879,0.00258838,89383.0,89371.0,0.1008]
[1769553553183,0.00258838,89383.0,89372.0,0.00135772]
[1769553553389,0.011201,89382.0,89372.0,0.00135772]
[1769553554389,0.00258838,89383.0,89372.0,0.00135772]
[1769553555482,0.00258838,89383.0,89372.0,0.01256072]
[1769553557178,0.00258838,89383.0,89371.0,0.1008]
[1769553557179,0.011201,89382.0,89371.0,0.1008]
[1769553557485,0.011202,89379.0,89371.0,0.1008]
[1769553557682,0.00258838,89378.0,89371.0,0.1008]
[1769553558385,0.011202,89377.0,89371.0,0.1008]
[1769553558583,0.00258838,89376.0,89371.0,0.1008]
[1769553558779,0.011202,89375.0,89367.0,0.39584]
[1769553558981,0.00258838,89375.0,89367.0,0.39584]
[1769553559285,0.011203,89373.0,89367.0,0.39584]
[1769553559489,0.01379138,89373.0,89367.0,0.39584]
[1769553560190,0.011203,89372.0,89367.0,0.39584]
[1769553560498,0.00258838,89372.0,89367.0,0.39584]
[1769553560788,0.00258838,89372.0,89367.0,0.1008]
[1769553560990,0.01379138,89372.0,89367.0,0.1008]
[1769553561186,0.01379138,89372.0,89359.0,0.38484]
[1769553561187,0.00258838,89372.0,89361.0,0.1008]
[1769553561788,0.011203,89368.0,89361.0,0.1008]
[1769553561992,0.01379138,89368.0,89361.0,0.1008]
[1769553562291,0.011203,89366.0,89359.0,0.38484]
[1769553562585,0.00258838,89365.0,89359.0,0.38484]
[1769553562890,0.011203,89367.0,89359.0,0.38484]
[1769553563190,0.011203,89367.0,89356.0,0.1008]
[1769553563390,0.01379138,89367.0,89356.0,0.1008]
[1769553563893,0.011204,89366.0,89356.0,0.1008]
[1769553564084,0.00258838,89365.0,89356.0,0.1008]
[1769553564993,0.011204,89366.0,89356.0,0.1008]
[1769553565193,0.011204,89366.0,89356.0,0.18953196]
[1769553565587,0.01379238,89366.0,89356.0,0.18953196]
[1769553566285,0.01379238,89366.0,89357.0,0.08873196]
[1769553566796,0.00258838,89366.0,89357.0,0.08873196]
[1769553567492,0.011204,89365.0,89357.0,0.08873196]
[1769553567693,0.00258838,89364.0,89357.0,0.08873196]
[1769553568395,0.01379238,89364.0,89357.0,0.08873196]
[1769553568596,0.00258838,89364.0,89356.0,0.1008]
[1769553569297,0.00258838,89364.0,89356.0,0.18953196]
[1769553570098,0.1008,89375.0,89359.0,0.011204]
[1769553570395,0.011203,89368.0,89356.0,0.20073696]
[1769553570594,0.01379138,89368.0,89356.0,0.20073696]
[1769553570996,0.01379138,89368.0,89356.0,0.2011982]
[1769553571198,0.01379138,89368.0,89357.0,0.0891932]
[1769553571388,0.01379138,89368.0,89356.0,0.2011982]
[1769553571589,0.00258838,89368.0,89356.0,0.2011982]
[1769553572102,0.00258838,89368.0,89357.0,0.0891932]
[1769553573805,0.00258838,89368.0,89357.0,0.1003972]
[1769553574895,0.011203,89367.0,89357.0,0.0891932]
[1769553575205,0.01379138,89367.0,89357.0,0.0891932]
[1769553575808,0.01379138,89367.0,89358.0,5.389e-05]
[1769553576502,0.00258838,89367.0,89358.0,5.389e-05]
[1769553576700,0.011204,89362.0,89357.0,0.0891932]
[1769553577005,0.00258838,89361.0,89356.0,0.1899932]
[1769553577308,0.011204,89360.0,89356.0,2e-07]
[1769553577505,0.00258838,89359.0,89356.0,2e-07]
[1769553577895,0.011204,89358.0,89356.0,2e-07]
[1769553578096,0.00258838,89357.0,89348.0,0.49204]
[1769553578702,0.011205,89354.0,89348.0,0.49204]
[1769553579004,0.00258838,89354.0,89348.0,0.49204]
[1769553579211,0.01001443,89362.0,89348.0,0.49204]
[1769553579212,0.011205,89357.0,89348.0,0.49204]
[1769553579501,0.00258838,89356.0,89348.0,0.49204]
[1769553579706,0.011204,89359.0,89348.0,0.49462838]
[1769553580022,0.01002118,89356.0,89340.0,0.13338289]
[1769553580200,0.00258838,89355.0,89338.0,0.011207]
[1769553580401,0.00258838,89355.0,89339.0,0.00086282]
[1769553580603,0.00258838,89355.0,89343.0,0.011206]
[1769553580791,0.011203,89370.0,89349.0,0.00995707]
[1769553580998,0.10084,89369.0,89353.0,0.00995707]
[1769553581204,0.10084,89368.0,89355.0,0.00995707]
[1769553581402,0.011202,89375.0,89357.0,0.00995707]
[1769553581605,0.011202,89375.0,89356.0,0.01379338]
[1769553581606,0.10084,89378.0,89360.0,0.00995707]
[1769553581804,0.011202,89382.0,89366.0,0.00995824]
[1769553582004,0.11413585,89410.0,89354.0,0.29508]
[1769553582005,0.10084,89381.0,89370.0,0.00995824]
[1769553582210,0.10084,89384.0,89372.0,0.00995824]
[1769553582512,0.0112,89392.0,89374.0,0.00995824]
[1769553582700,0.0112,89390.0,89376.0,0.00995824]
[1769553583010,0.11204,89390.0,89378.0,0.00995824]
[1769553583211,0.11204,89390.0,89379.0,0.00258838]
[1769553583412,0.10084,89390.0,89380.0,0.00995824]
[1769553583611,0.10084,89390.0,89381.0,0.00258838]
[1769553584110,0.011201,89389.0,89381.0,3.8e-07]
[1769553584306,0.002588,89388.0,89381.0,3.8e-07]
[1769553584513,0.002588,89388.0,89375.0,0.00978839]
[1769553584714,0.013789,89388.0,89376.0,0.01065159]
[1769553584912,0.00963291,89387.0,89370.0,0.00978839]
[1769553585118,0.002588,89386.0,89371.0,0.01065159]
[1769553585910,0.011201,89385.0,89371.0,0.01065159]
[1769553586117,0.002588,89384.0,89371.0,0.01065159]
[1769553586410,0.011201,89383.0,89371.0,0.01065159]